bitfinex/quotes_ETHUSD_20241006
["timestamp","ask_amount","ask_price","bid_price","bid_amount"]
[1728204358869,3.85291,2422.1,2422.0,0.54941809]
[1728204358870,0.55,2422.1,2422.0,0.54941809]
[1728204359218,3.30259,2422.4,2422.1,0.4375]
[1728204359435,3.30259,2422.4,2422.3,0.00802139]
[1728204359703,6.60522,2422.4,2422.3,0.11167628]
[1728204359912,6.60522,2422.4,2422.3,0.00802139]
[1728204360087,6.60522,2422.4,2422.3,0.11167628]
[1728204360285,6.60522,2422.4,2422.3,0.00802139]
[1728204360496,7.15522,2422.4,2422.3,0.00802139]
[1728204362277,7.15522,2422.4,2422.3,0.11166882]
[1728204366639,3.85259,2422.4,2422.3,0.11166882]
[1728204366835,3.85259,2422.4,2422.3,0.54916882]
[1728204367148,0.55,2422.5,2422.3,0.54916882]
[1728204367351,3.8524,2422.5,2422.3,0.54916882]
[1728204367645,3.8524,2422.5,2422.4,0.4375]
[1728204367802,3.8524,2422.5,2422.4,0.54105608]
[1728204370347,3.30232,2422.6,2422.4,0.54105608]
[1728204370505,3.30232,2422.6,2422.5,0.00802139]
[1728204370707,3.30232,2422.6,2422.5,0.44552139]
[1728204370905,3.30232,2422.6,2422.5,0.5489737]
[1728204372041,3.85232,2422.6,2422.5,0.5489737]
[1728204374256,0.55,2422.6,2422.5,0.5489737]
[1728204374544,3.30205,2422.8,2422.6,0.4375]
[1728204374545,0.55,2422.7,2422.6,0.4375]
[1728204374942,0.55,2422.7,2422.6,0.7957691]
[1728204376649,3.8521,2422.7,2422.6,0.7957691]
[1728204377638,0.55,2422.7,2422.6,0.7957691]
[1728204379461,0.55,2422.9,2422.6,0.7957691]
[1728204379837,0.55,2422.9,2422.7,0.4375]
[1728204380161,0.55,2422.9,2422.8,0.11118065]
[1728204381266,3.85182,2422.9,2422.8,0.11118065]
[1728204398326,0.55,2422.9,2422.8,0.11118065]
[1728204405621,3.85182,2422.9,2422.8,0.11118065]
[1728204408222,0.55,2422.9,2422.8,0.11118065]
[1728204408994,3.85182,2422.9,2422.8,0.11118065]
[1728204411218,0.55,2422.9,2422.8,0.11118065]
[1728204411920,4.67532,2422.9,2422.8,0.11118065]
[1728204412220,4.67532,2422.9,2422.8,0.00802139]
[1728204414131,5.93141513,2422.9,2422.8,0.00802139]
[1728204414287,5.93141513,2422.9,2422.8,0.11117735]
[1728204415489,5.10791513,2422.9,2422.8,0.11117735]
[1728204415808,5.10791513,2422.9,2422.8,0.00802139]
[1728204416006,1.03311351,2422.9,2422.8,0.00802139]
[1728204416208,1.03311351,2422.9,2422.8,0.11117735]
[1728204416419,1.03311351,2422.9,2422.8,0.00802139]
[1728204416722,4.33493351,2422.9,2422.8,0.00802139]
[1728204416929,4.33493351,2422.9,2422.8,0.11117735]
[1728204417093,4.33493351,2422.9,2422.8,0.00802139]
[1728204417430,4.33493351,2422.9,2422.8,0.11117735]
[1728204417635,4.33493351,2422.9,2422.8,0.00802139]
[1728204417789,4.33493351,2422.9,2422.8,0.11117735]
[1728204421065,3.85182,2422.9,2422.8,0.11117735]
[1728204421233,4.31653234,2422.9,2422.8,0.11117735]
[1728204423460,3.85182,2422.9,2422.8,0.11117735]
[1728204423669,4.30492742,2422.9,2422.8,0.11117735]
[1728204426672,4.30493533,2422.9,2422.8,0.11117735]
[1728204430220,4.30493425,2422.9,2422.8,0.11117735]
[1728204431713,4.30493425,2422.9,2422.8,0.00802139]
[1728204433374,4.67302,2422.9,2422.8,0.00802139]
[1728204433574,5.12615307,2422.9,2422.8,0.00802139]
[1728204435020,5.87886344,2422.9,2422.8,0.00802139]
[1728204436213,5.12615307,2422.9,2422.8,0.00802139]
[1728204436585,4.30495307,2422.9,2422.8,0.00802139]
[1728204436906,3.85182,2422.9,2422.8,0.11118065]
[1728204437105,4.31528481,2422.9,2422.8,0.11118065]
[1728204438226,3.85182,2422.9,2422.8,0.11118065]
[1728204449511,0.55,2422.9,2422.8,0.54868065]
[1728204450190,1.80113752,2422.9,2422.8,0.54868065]
[1728204451410,3.85182,2422.9,2422.8,0.11118065]
[1728204451709,5.08102141,2422.9,2422.8,0.11118065]
[1728204452767,1.77920141,2422.9,2422.8,0.11118065]
[1728204454227,1.02276977,2422.9,2422.8,0.11118065]
[1728204454629,0.55,2422.9,2422.8,0.11118065]
[1728204454918,1.01112754,2422.9,2422.8,0.11118065]
[1728204458153,0.55,2422.9,2422.8,0.11118065]
[1728204458336,1.01111888,2422.9,2422.8,0.11118065]
[1728204461589,0.55,2422.9,2422.8,0.11118065]
[1728204461765,1.47220708,2422.9,2422.8,0.11118065]
[1728204461962,1.01110354,2422.9,2422.8,0.11118065]
[1728204462163,1.47220754,2422.9,2422.8,0.11118065]
[1728204462576,4.77402754,2422.9,2422.8,0.11118065]
[1728204465198,4.77405688,2422.9,2422.8,0.11118065]
[1728204465708,0.92223688,2422.9,2422.8,0.11118065]
[1728204466071,4.77405688,2422.9,2422.8,0.11118065]
[1728204468383,4.31292354,2422.9,2422.8,0.11118065]
[1728204468589,4.76974482,2422.9,2422.8,0.11118065]
[1728204471217,4.30864128,2422.9,2422.8,0.11118065]
[1728204471820,3.85182,2422.9,2422.8,0.11118065]
[1728204472127,4.30863377,2422.9,2422.8,0.11118065]
[1728204472296,3.85182,2422.9,2422.8,0.11118065]
[1728204472695,4.30863055,2422.9,2422.8,0.11118065]
[1728204473613,5.11443055,2422.9,2422.8,0.11118065]
[1728204474022,5.11443055,2422.9,2422.8,0.00802139]
[1728204475212,4.65762,2422.9,2422.8,0.00802139]
[1728204475389,5.11424285,2422.9,2422.8,0.00802139]
[1728204476394,3.85223,2422.6,2422.5,0.00802139]
[1728204476700,4.30885285,2422.6,2422.5,0.00802139]
[1728204476910,4.30885285,2422.6,2422.5,0.09417778]
[1728204477454,3.85223,2422.6,2422.5,0.09417778]
[1728204478361,3.3021,2422.7,2422.5,0.09417778]
[1728204478362,3.3021,2422.7,2422.5,2.53167778]
[1728204478513,3.30223,2422.6,2422.5,2.53167778]
[1728204480141,3.30157,2423.1,2422.5,3.68390282]
[1728204480321,3.30136,2423.3,2423.0,0.44552139]
[1728204480525,3.30136,2423.3,2423.2,0.00802139]
[1728204480913,3.30136,2423.3,2423.2,0.09361387]
[1728204481746,3.85136,2423.3,2423.2,0.09361387]
[1728204482114,3.85136,2423.3,2423.2,0.00802139]
[1728204482330,3.85136,2423.3,2423.2,0.09361387]
[1728204482515,3.85136,2423.3,2423.2,0.00802139]
[1728204483017,3.85136,2423.3,2423.2,0.09361387]
[1728204483216,3.85136,2423.3,2423.2,0.00802139]
[1728204483432,3.85136,2423.3,2423.2,0.09361387]
[1728204492063,0.55,2423.3,2423.2,0.09361387]
[1728204497870,3.30093,2423.6,2423.3,0.4375]
[1728204498080,0.55,2423.5,2423.4,0.25311139]
[1728204498244,0.55,2423.5,2423.4,0.33846554]
[1728204498767,6.60193,2423.6,2423.4,0.33846554]
[1728204498768,3.30093,2423.6,2423.4,0.33846554]
[1728204499151,0.55,2423.7,2423.4,0.33846554]
[1728204499475,3.85079,2423.7,2423.4,0.33846554]
[1728204500643,0.55,2423.7,2423.4,0.33846554]
[1728204501341,3.85074,2423.7,2423.4,0.33846554]
[1728204502083,0.55,2423.7,2423.4,0.33846554]
[1728204505284,0.55,2423.7,2423.5,0.4375]
[1728204505488,0.55,2423.9,2423.5,2.52001679]
[1728204505646,0.55,2423.9,2423.8,0.00802139]
[1728204505976,3.85046,2423.9,2423.8,0.00802139]
[1728204506185,3.85046,2423.9,2423.8,0.0930535]
[1728204506353,3.85046,2423.9,2423.8,0.00802139]
[1728204506846,3.85046,2423.9,2423.8,0.0930169]
[1728204507038,3.85046,2423.9,2423.8,0.00802139]
[1728204507243,3.85046,2423.9,2423.8,0.09296369]
[1728204507443,3.85046,2423.9,2423.8,0.00802139]
[1728204507758,3.85046,2423.9,2423.8,0.09296369]
[1728204507953,3.85046,2423.9,2423.8,0.00802139]
[1728204508147,3.85046,2423.9,2423.8,0.09296369]
[1728204508349,3.85046,2423.9,2423.8,0.00802139]
[1728204508565,3.85046,2423.9,2423.8,0.09296369]
[1728204508769,3.85046,2423.9,2423.8,0.00802139]
[1728204508953,3.85046,2423.9,2423.8,0.09296369]
[1728204509748,0.55,2423.9,2423.8,0.09296369]
[1728204518000,3.85046,2423.9,2423.8,0.09296369]
[1728204518419,0.55,2423.9,2423.8,0.09296369]
[1728204532300,3.85046,2423.9,2423.8,0.09296369]
[1728204532627,4.64476,2423.9,2423.8,0.09296369]
[1728204533128,4.64476,2423.9,2423.8,0.00802139]
[1728204534102,4.64476,2423.9,2423.8,0.09293767]
[1728204540017,4.64476,2423.9,2423.8,0.00802139]
[1728204541310,4.64476,2423.9,2423.8,0.09295319]
[1728204542425,2.11189599,2423.9,2423.6,0.00802139]
[1728204542632,5.12450749,2423.9,2423.8,0.00802139]
[1728204542936,5.89185845,2423.9,2423.8,0.00802139]
[1728204543145,6.37144864,2423.9,2423.8,0.00802139]
[1728204545850,5.89185845,2423.9,2423.8,0.00802139]
[1728204546160,6.33416345,2423.9,2423.8,0.00802139]
[1728204551128,5.53986345,2423.9,2423.8,0.00802139]
[1728204551324,5.53986345,2423.9,2423.8,0.09015397]
[1728204551646,5.06011596,2423.9,2423.8,0.09015397]
[1728204551841,5.86741596,2423.9,2423.8,0.09015397]
[1728204552055,5.86741596,2423.9,2423.8,0.00802139]
[1728204552439,5.12301229,2423.9,2423.8,0.00802139]
[1728204553546,4.65776,2423.9,2423.8,0.00802139]
[1728204553941,5.11129471,2423.9,2423.8,0.00802139]
[1728204560198,4.62433,2423.7,2423.6,0.00802139]
[1728204560496,4.62433,2423.7,2423.3,0.4375]
[1728204560497,3.85114,2423.4,2423.3,0.4375]
[1728204560651,4.30467471,2423.4,2423.3,0.4375]
[1728204560850,3.85114,2423.4,2423.3,0.52003754]
[1728204561086,4.30481732,2423.4,2423.3,0.52805893]
[1728204561495,5.08512641,2423.4,2423.3,0.52805893]
[1728204566007,5.08512641,2423.4,2423.3,0.44552139]
[1728204566195,5.08512641,2423.4,2423.3,0.00802139]
[1728204567798,5.08512641,2423.4,2423.3,0.09056846]
[1728204567991,5.08512641,2423.4,2423.3,0.00802139]
[1728204568196,5.08512641,2423.4,2423.3,0.09056846]
[1728204572791,1.23398641,2423.4,2423.3,2.52806846]
[1728204572974,1.23398641,2423.4,2423.3,2.78087531]
[1728204574366,3.30101,2423.5,2423.3,2.78087531]
[1728204574706,0.46962361,2423.4,2423.3,2.78087531]
[1728204576668,0.46962361,2423.4,2423.3,4.37060035]
[1728204576900,6.60111,2423.9,2423.7,0.4375]
[1728204577100,0.44686874,2423.8,2423.7,0.4375]
[1728204577313,0.44686874,2423.8,2423.7,0.68125]
[1728204577474,0.44686874,2423.8,2423.7,0.68927139]
[1728204577683,6.60109,2423.9,2423.7,0.68927139]
[1728204577992,3.30054,2423.9,2423.8,0.00802139]
[1728204578395,3.85054,2423.9,2423.8,0.27694853]
[1728204580314,3.85054,2423.9,2423.8,0.35905376]
[1728204586920,3.30054,2423.9,2423.8,0.35905376]
[1728204593543,3.30033,2424.0,2423.8,0.35905376]
[1728204593754,6.60074,2424.0,2423.8,0.35905376]
[1728204594330,3.30033,2424.0,2423.8,0.35905376]
[1728204594541,6.60074,2424.0,2423.8,0.35905376]
[1728204599459,3.30033,2424.0,2423.8,0.35905376]
[1728204599633,3.30046,2423.9,2423.8,0.35905376]
[1728204601449,3.30046,2423.9,2423.8,0.09012662]
[1728204601649,3.30033,2424.0,2423.8,0.09012662]
[1728204605361,3.30046,2423.9,2423.8,0.09012662]
[1728204605663,6.60076,2424.0,2423.8,0.09012662]
[1728204605828,3.30033,2424.0,2423.8,0.09012662]
[1728204611270,3.30033,2424.0,2423.8,0.08913613]
[1728204613679,0.55,2424.2,2423.9,3.58972504]
[1728204613978,0.55,2424.3,2424.0,0.51942501]
[1728204614754,3.84995,2424.3,2424.0,0.51942501]
[1728204615261,3.84995,2424.3,2424.2,0.0072]
[1728204615581,3.84995,2424.3,2424.2,0.08893602]
[1728204615783,3.29986,2424.4,2424.2,2.0072]
[1728204615941,3.29986,2424.4,2424.3,0.0072]
[1728204616386,3.29986,2424.4,2424.3,0.08885315]
[1728204616387,4.07586,2424.4,2424.3,0.08885315]
[1728204616547,4.07586,2424.4,2424.3,0.0072]
[1728204616742,4.07586,2424.4,2424.3,0.08885315]
[1728204616938,4.62586,2424.4,2424.3,0.0072]
[1728204617265,4.62586,2424.4,2424.3,0.08885315]
[1728204617444,4.62586,2424.4,2424.3,0.0072]
[1728204617646,4.62586,2424.4,2424.3,0.08885475]
[1728204617846,4.62586,2424.4,2424.3,0.0072]
[1728204618396,4.62586,2424.4,2424.3,0.08885475]
[1728204618685,4.62586,2424.4,2424.3,0.0072]
[1728204618888,4.62586,2424.4,2424.3,0.08885475]
[1728204626572,4.62586,2424.4,2424.3,0.0072]
[1728204627184,3.29966,2424.5,2424.1,0.0072]
[1728204627185,4.66455,2424.2,2424.1,0.0072]
[1728204645013,3.85005,2424.2,2424.1,0.0072]
[1728204651688,3.30005,2424.2,2424.1,0.4447]
[1728204651990,3.30005,2424.2,2424.1,0.57898453]
[1728204652521,3.29966,2424.5,2424.1,0.57898453]
[1728204652879,0.55,2424.4,2424.1,0.57898453]
[1728204653219,3.19966,2424.5,2424.1,1.16692198]
[1728204653515,0.55,2424.4,2424.1,1.16692198]
[1728204653851,3.29943,2424.7,2424.3,0.0072]
[1728204654027,3.29943,2424.7,2424.6,0.0072]
[1728204654384,4.06727,2424.8,2424.6,0.14103562]
[1728204654587,3.29927,2424.8,2424.7,0.0072]
[1728204654882,3.29919,2424.9,2424.7,0.14094971]
[1728204655082,0.768,2425.0,2424.7,0.14094971]
[1728204655287,0.768,2425.0,2424.9,0.0072]
[1728204655686,0.768,2425.0,2424.9,0.14076508]
[1728204655886,0.768,2425.0,2424.9,0.0072]
[1728204656078,0.768,2425.0,2424.9,0.14076508]
[1728204656283,4.61696,2425.0,2424.9,0.0072]
[1728204656779,4.61696,2425.0,2424.9,0.14076508]
[1728204657809,4.61696,2425.0,2424.9,0.0072]
[1728204666123,3.84896,2425.0,2424.9,0.0072]
[1728204666325,0.55,2425.0,2424.9,0.0072]
[1728204666651,3.29874,2425.2,2424.9,0.14070021]
[1728204666860,3.29865,2425.3,2425.1,0.0072]
[1728204667042,3.29865,2425.3,2425.1,0.4447]
[1728204667351,6.59731,2425.3,2425.2,0.13325216]
[1728204667555,6.59731,2425.3,2425.2,0.14045216]
[1728204668537,7.14731,2425.3,2425.2,0.14045216]
[1728204668884,7.14731,2425.3,2425.2,0.0072]
[1728204671111,3.84865,2425.3,2425.2,0.0072]
[1728204671318,3.29865,2425.3,2425.2,0.0072]
[1728204671836,3.29865,2425.3,2425.2,0.14042574]
[1728204672544,3.29843,2425.4,2425.2,0.14042574]
[1728204672763,3.29843,2425.4,2425.3,0.4447]
[1728204673059,3.29843,2425.4,2425.3,0.14034307]
[1728204674028,3.84843,2425.4,2425.3,0.14034307]
[1728204674230,3.84843,2425.4,2425.3,0.0072]
[1728204675026,3.84843,2425.4,2425.3,0.14034307]
[1728204684447,3.84843,2425.4,2425.3,0.57784307]
[1728204689415,3.84843,2425.4,2425.3,0.14034307]
[1728204692834,4.67033,2425.4,2425.3,0.14034307]
[1728204694419,3.84843,2425.4,2425.3,0.14034307]
[1728204706493,4.66863,2425.4,2425.3,0.0072]
[1728204707404,4.66863,2425.4,2424.6,2.4375]
[1728204707405,4.66889,2425.2,2424.6,0.4375]
[1728204707574,3.29978,2424.4,2424.3,0.4375]
[1728204707761,3.84978,2424.4,2424.3,0.68845]
[1728204708690,3.84978,2424.4,2424.3,0.4447]
[1728204711666,3.84978,2424.4,2424.3,0.0072]
[1728204715227,3.84978,2424.4,2424.3,0.12376798]
[1728204716436,3.84978,2424.4,2424.3,0.0072]
[1728204716797,3.84978,2424.4,2424.3,0.12376798]
[1728204746513,3.84978,2424.4,2424.3,0.0072]
[1728204747705,3.84978,2424.4,2424.3,0.12376477]
[1728204748975,3.84978,2424.4,2424.3,0.0072]
[1728204750115,4.63848,2424.4,2424.3,0.0072]
[1728204780929,3.84978,2424.4,2424.3,0.0072]
[1728204815395,3.29978,2424.4,2424.3,0.4447]
[1728204815819,3.29978,2424.4,2424.3,0.55749746]
[1728204817033,3.84978,2424.4,2424.3,0.55749746]
[1728204823941,3.84978,2424.4,2424.3,0.0072]
[1728204832876,3.84978,2424.4,2424.3,0.4447]
[1728204836408,3.84978,2424.4,2424.3,0.55609399]
[1728204839693,3.84978,2424.4,2424.3,0.11859399]
[1728204840232,3.84978,2424.4,2424.3,0.0072]
[1728204890441,4.61668,2424.4,2424.3,0.0072]
[1728204911274,4.61512597,2424.4,2424.3,0.0072]
[1728204929118,4.61512597,2424.4,2424.1,0.0072]
[1728204929119,4.61265,2424.2,2424.1,0.0072]
[1728204930986,4.61265,2424.2,2423.4,0.4375]
[1728204931193,3.85182,2422.9,2422.8,0.4375]
[1728204931578,3.85182,2422.9,2422.8,0.53557]
[1728204931785,3.85182,2422.9,2422.8,0.4375]
[1728204933529,3.85182,2422.9,2422.8,0.4455]
[1728204934380,3.30182,2422.9,2422.8,0.54357153]
[1728204934994,3.3017,2423.0,2422.8,0.54357153]
[1728204935193,6.6035,2423.0,2422.8,0.54357153]
[1728204935416,3.30182,2422.9,2422.8,0.54357153]
[1728204943853,3.85182,2422.9,2422.8,0.10607153]
[1728204944260,3.85182,2422.9,2422.8,0.008]
[1728204954027,4.67822,2422.9,2422.8,0.008]
[1728204961387,3.85182,2422.9,2422.8,0.008]
[1728204980700,3.30182,2422.9,2422.8,0.4455]
[1728204980922,3.30145,2423.2,2422.8,0.4455]
[1728204981129,3.30145,2423.2,2423.0,0.4375]
[1728204981309,3.30128,2423.3,2423.1,0.09793018]
[1728204981616,3.30128,2423.3,2422.9,0.08254013]
[1728204981617,3.30128,2423.3,2423.2,0.4455]
[1728204981830,3.30128,2423.3,2423.2,0.54334507]
[1728204982523,3.85128,2423.3,2423.2,0.54334507]
[1728204982820,3.30128,2423.3,2423.2,0.54334507]
[1728204984491,3.85128,2423.3,2423.2,0.54334507]
[1728204984858,3.85128,2423.3,2423.2,0.10584507]
[1728205010420,3.85128,2423.3,2423.2,0.008]
[1728205016472,4.61238,2423.3,2423.2,0.008]
[1728205016843,5.04288975,2423.3,2423.2,0.008]
[1728205021953,4.49288975,2423.3,2423.2,0.008]
[1728205022288,4.06238,2423.3,2423.2,0.008]
[1728205022633,3.30128,2423.3,2423.2,0.008]
[1728205023542,3.85128,2423.3,2423.2,0.008]
[1728205046468,4.67768,2423.3,2423.2,0.008]
[1728205071517,3.85128,2423.3,2423.2,0.008]
[1728205084918,4.62468,2423.3,2423.2,0.008]
[1728205087422,4.62468,2423.3,2422.9,0.008]
[1728205087622,3.30169,2423.0,2422.9,0.008]
[1728205087830,3.85169,2423.0,2422.9,0.008]
[1728205088960,4.62509,2423.0,2422.9,0.008]
[1728205104381,3.85169,2423.0,2422.9,0.008]
[1728205140952,3.85169,2423.0,2422.9,0.4455]
[1728205145837,3.30169,2423.0,2422.9,0.4455]
[1728205146533,3.30169,2423.0,2422.9,0.5204531]
[1728205147569,3.30169,2423.0,2422.9,0.4455]
[1728205152544,3.30169,2423.0,2422.9,0.52041788]
[1728205164413,3.30169,2423.0,2422.9,0.08291788]
[1728205164414,3.85169,2423.0,2422.9,0.08291788]
[1728205164909,3.85169,2423.0,2422.9,0.008]
[1728205205166,3.30169,2423.0,2422.9,0.4455]
[1728205205854,3.85169,2423.0,2422.9,0.008]
[1728205207647,4.62569,2423.0,2422.9,0.008]
[1728205213547,3.85169,2423.0,2422.9,0.008]
[1728205222786,3.85031476,2423.0,2422.9,0.008]
[1728205264338,4.64411476,2423.0,2422.9,0.008]
[1728205289689,5.07471797,2423.0,2422.9,0.008]
[1728205303491,5.07471797,2423.0,2422.6,0.008]
[1728205303492,1.3606,2422.9,2422.6,0.008]
[1728205303674,3.8525,2422.4,2422.3,0.4375]
[1728205314129,3.3025,2422.4,2422.3,0.4375]
[1728205315836,3.3025,2422.4,2422.3,0.49670572]
[1728205316005,3.3025,2422.4,2422.3,0.50470572]
[1728205321218,3.3025,2422.4,2422.3,0.4455]
[1728205322295,3.94366961,2422.5,2422.3,0.4455]
[1728205322500,3.3025,2422.4,2422.3,0.4455]
[1728205322725,3.3025,2422.4,2422.3,0.8490225]
[1728205324530,3.94366961,2422.5,2422.3,0.8490225]
[1728205324729,3.94366961,2422.5,2422.4,0.4375]
[1728205325410,3.94366961,2422.5,2422.4,0.49661108]
[1728205358382,0.64128961,2422.5,2422.4,0.49661108]
[1728205358680,0.64128961,2422.5,2422.4,0.78742444]
[1728205359749,3.94365961,2422.5,2422.4,0.78742444]
[1728205361582,0.64128961,2422.5,2422.4,0.78742444]
[1728205363789,0.64128961,2422.5,2422.4,0.86997274]
[1728205384619,0.64128961,2422.5,2422.4,0.78742444]
[1728205386521,0.64128961,2422.5,2422.4,0.34992444]
[1728205398136,1.42328961,2422.5,2422.4,0.34992444]
[1728205408332,0.64128961,2422.5,2422.4,0.34992444]
[1728205408635,0.64128961,2422.5,2422.4,3.65242444]
[1728205414315,0.64128961,2422.5,2422.4,3.73497143]
[1728205420670,0.64128961,2422.5,2422.4,0.34992444]
[1728205422537,0.8018,2422.7,2422.5,2.0]
[1728205422858,0.8018,2422.7,2422.6,0.0589218]
[1728205451570,0.8018,2422.7,2422.3,3.31056]
[1728205451744,0.8018,2422.7,2422.6,0.05890414]
[1728205451943,0.8018,2422.7,2422.3,3.31056]
[1728205452146,0.8018,2422.7,2422.4,0.05906985]
[1728205454406,4.10392,2422.7,2422.4,0.05906985]
[1728205454962,0.8018,2422.7,2422.4,0.05906985]
[1728205455181,0.8018,2422.7,2422.4,0.49656985]
[1728205455501,0.8018,2422.7,2422.4,1.07730084]
[1728205456007,3.30196,2422.8,2422.4,1.07730084]
[1728205456809,6.60404,2422.8,2422.4,1.07730084]
[1728205457102,3.30196,2422.8,2422.7,0.008]
[1728205457305,3.30196,2422.8,2422.7,0.06682276]
[1728205462790,4.12346,2422.8,2422.7,0.06682276]
[1728205472023,3.30196,2422.8,2422.7,0.06682276]
[1728205472321,3.30184,2422.9,2422.7,0.06682276]
[1728205472619,3.30184,2422.9,2422.7,0.31725504]
[1728205472917,3.30184,2422.9,2422.8,0.008]
[1728205473080,3.30184,2422.9,2422.8,0.06674065]
[1728205498990,4.10604,2422.9,2422.8,0.06674065]
[1728205499342,4.10604,2422.9,2422.8,0.008]
[1728205500464,4.10604,2422.9,2422.8,0.06673772]
[1728205500705,4.10604,2422.9,2422.8,0.008]
[1728205500870,4.10604,2422.9,2422.8,0.06673772]
[1728205502252,4.65604,2422.9,2422.8,0.06673772]
[1728205502458,4.65604,2422.9,2422.8,0.008]
[1728205503179,4.65604,2422.9,2422.8,0.06673772]
[1728205504052,4.65604,2422.9,2422.8,0.008]
[1728205507305,4.65604,2422.9,2422.8,0.06673772]
[1728205508368,4.65604,2422.9,2422.8,0.008]
[1728205511981,3.30184,2422.9,2422.8,0.008]
[1728205512180,3.30184,2422.9,2422.8,0.06674139]
[1728205513402,3.30182,2422.9,2422.8,0.06674139]
[1728205523318,6.6035,2423.0,2422.8,0.06674139]
[1728205525925,3.30182,2422.9,2422.8,0.06674139]
[1728205526605,6.60348,2423.0,2422.8,0.06674139]
[1728205527495,3.3017,2423.0,2422.8,0.06674139]
[1728205527709,3.30182,2422.9,2422.8,0.06674139]
[1728205532005,0.7959,2423.1,2422.8,0.1460445]
[1728205532219,3.30157,2423.1,2423.0,0.008]
[1728205532421,3.30157,2423.1,2423.0,0.14586126]
[1728205536213,3.3015,2423.2,2423.0,0.14586126]
[1728205536412,6.60303,2423.2,2423.0,0.14586126]
[1728205536611,3.30155,2423.1,2423.0,0.14586126]
[1728205547133,4.09735,2423.1,2423.0,0.14586126]
[1728205553044,4.64735,2423.1,2423.0,0.14586126]
[1728205572400,3.30155,2423.1,2423.0,0.14586126]
[1728205591139,6.60303,2423.2,2423.0,0.14586126]
[1728205592366,4.07926,2423.3,2423.0,0.14586126]
[1728205592577,3.30136,2423.3,2423.0,0.14586126]
[1728205592727,3.30122,2423.4,2423.1,0.4375]
[1728205592934,3.30081,2423.7,2423.3,0.4455]
[1728205593241,0.8035,2423.8,2423.6,0.008]
[1728205593242,3.30073,2423.8,2423.6,0.008]
[1728205593431,3.30073,2423.8,2423.7,0.008]
[1728205593633,3.30073,2423.8,2423.7,0.14523154]
[1728205594848,3.85073,2423.8,2423.7,0.14523154]
[1728205595367,3.30047,2423.9,2423.7,0.14523154]
[1728205597348,3.30033,2424.0,2423.7,0.14523154]
[1728205601153,3.30023,2424.1,2423.7,0.14523154]
[1728205601354,6.60052,2424.1,2423.7,0.53360269]
[1728205601554,7.15052,2424.1,2424.0,0.008]
[1728205601853,7.15052,2424.1,2424.0,0.14493296]
[1728205602259,0.7658,2424.5,2424.0,0.58243296]
[1728205602457,4.06551,2424.5,2424.4,0.008]
[1728205602691,3.29971,2424.5,2424.4,0.008]
[1728205603244,3.29971,2424.5,2424.4,0.14449546]
[1728205604446,4.06524,2424.7,2424.4,0.14449546]
[1728205604696,3.29929,2424.8,2424.6,0.008]
[1728205604875,3.29922,2424.9,2424.7,0.14423603]
[1728205605079,6.59845,2424.9,2424.8,0.008]
[1728205605301,3.29922,2424.9,2424.8,0.14412359]
[1728205617305,3.29897,2425.0,2424.8,0.14412359]
[1728205618906,6.59802,2425.0,2424.8,0.14412359]
[1728205620498,3.29897,2425.0,2424.8,0.14412359]
[1728205620705,3.2991,2424.9,2424.8,0.14412359]
[1728205621212,3.29897,2425.0,2424.8,0.14412359]
[1728205621381,6.59803,2425.0,2424.8,0.14412359]
[1728205623263,3.29897,2425.0,2424.8,0.14412359]
[1728205623469,6.59805,2425.0,2424.8,0.14412359]
[1728205624100,3.29897,2425.0,2424.8,0.14412359]
[1728205624269,6.59802,2425.0,2424.8,0.14412359]
[1728205626607,3.2991,2424.9,2424.8,0.14412359]
[1728205628971,3.29897,2425.0,2424.8,0.14412359]
[1728205629171,6.59806,2425.0,2424.8,0.14412359]
[1728205629679,3.2991,2424.9,2424.8,0.14412359]
[1728205630405,3.29897,2425.0,2424.8,0.58162359]
[1728205633775,3.29897,2425.0,2424.8,0.14412359]
[1728205635006,3.2991,2424.9,2424.8,0.14412359]
[1728205637196,4.0567,2424.9,2424.8,0.14412359]
[1728205644818,4.6067,2424.9,2424.8,0.14412359]
[1728205645153,4.6067,2424.9,2424.8,0.008]
[1728205650548,4.0567,2424.9,2424.8,0.008]
[1728205651260,4.0567,2424.9,2424.8,0.14399128]
[1728205656962,3.2991,2424.9,2424.8,0.14399128]
[1728205664187,3.2991,2424.9,2424.8,0.008]
[1728205665096,4.6384,2424.9,2424.8,0.008]
[1728205675312,3.8491,2424.9,2424.8,0.008]
[1728205678300,3.8491,2424.9,2424.8,0.14167558]
[1728205678507,3.8491,2424.9,2424.8,0.008]
[1728205682334,0.55,2424.9,2424.8,0.008]
[1728205682693,0.55,2424.9,2424.8,0.14167558]
[1728205682905,0.55,2424.9,2424.8,0.008]
[1728205683112,0.55,2424.9,2424.8,0.14167558]
[1728205683335,0.55,2424.9,2424.8,0.008]
[1728205683508,0.55,2424.9,2424.8,0.14167558]
[1728205696023,0.55,2425.0,2424.8,0.14167558]
[1728205701220,0.7726,2424.9,2424.8,0.008]
[1728205703555,0.55,2425.0,2424.8,0.008]
[1728205703915,3.849,2425.0,2424.8,0.008]
[1728205707455,3.849,2425.0,2424.9,0.13358594]
[1728205708261,0.55,2425.0,2424.9,0.13358594]
[1728205709337,0.55,2425.0,2424.8,0.008]
[1728205709767,0.55,2425.0,2424.9,0.13358594]
[1728205710059,0.55,2425.0,2424.8,0.008]
[1728205710571,0.55,2425.0,2424.9,0.13358594]
[1728205711039,0.55,2425.0,2424.8,0.008]
[1728205711543,0.55,2425.0,2424.9,0.13358594]
[1728205711869,0.55,2425.0,2424.8,0.008]
[1728205712041,0.55,2425.0,2424.9,0.13358594]
[1728205712543,0.55,2425.0,2424.8,0.008]
[1728205712870,0.55,2425.0,2424.9,0.13359111]
[1728205713029,0.55,2425.0,2424.8,0.008]
[1728205713233,0.55,2425.0,2424.9,0.13359111]
[1728205713433,0.55,2425.0,2424.8,0.008]
[1728205713963,0.55,2425.0,2424.9,0.13359111]
[1728205714344,0.55,2425.0,2424.8,0.008]